Cogmind - Beta 16.1 @@@ ROGUE MODE // 2026.02.15 @ 12:35:38 Player: Zish Result: Destroyed by H-77 Assassin with High-powered Shotgun Performance ------------- Evolutions (6) 3000 Regions Visited (12) 2400 Robots Destroyed (89) 445 Value Destroyed (2570) 2570 Prototype IDs (30) 600 Alien Tech Used (0) 0 Bonus (273) 273 TOTAL SCORE: 9288 Bonus ------- Aligned with FarCom 300 Friendly Fire -27 Cogmind --------- Core Integrity 0/1150 Matter 57/300 Energy 100/100 System Corruption 0% Temperature Cool (0) Movement Core (50) Location -4/Upper Caves Parts ------- > --- POWER (2) -------- (None) > --- PROPULSION (6) --- (None) > --- UTILITY (7) ------ (None) > --- WEAPON (4) ------- (None) > --- INVENTORY (5) ---- Light Neutrino Core Peak State ------------ > --- POWER ------------ Light Deuterium Engine Light Nuclear Core > --- PROPULSION ------- Light Treads Light Treads Light Treads Improved Treads > --- UTILITY ---------- High-capacity Storage Unit Signal Interpreter Improved Targeting Computer Matter Filter Improved Kinecellerator Medium Reactive Plating Hacking Suite > --- WEAPON ----------- XL Autogun Array > --- INVENTORY -------- Improved Deuterium Engine Micro Nuclear Core Carbon-fiber Leg Carbon-fiber Leg Carbon-fiber Leg Nuclear Pulse Array Improved Heat Sink Sensor Array Advanced Terrain Scanner Terrain Scan Processor Transmission Jammer Hardened Medium Armor Plating Beamcaster Gauss Rifle Advanced Assault Cannon Advanced Assault Cannon Improved Proton Missile Launcher Scatter Rocket Array Hammer [Rating: 75] Favorites ----------- Power Light Nuclear Core Engine Light Deuterium Engine Power Core Light Nuclear Core Propulsion Light Treads Treads Light Treads Flight Unit Nuclear Pulse Array Utility Signal Interpreter Device Transmission Jammer Storage High-capacity Storage Unit Processor Signal Interpreter Hackware Hacking Suite Protection Medium Reactive Plating Weapon XL Autogun Array Energy Gun Small Laser Energy Cannon HERF Cannon Ballistic Gun XL Autogun Array Ballistic Cannon Advanced Assault Cannon Launcher Grenade Launcher Impact Weapon Hammer Slashing Weapon Scythe Build | -11 -10 -10 -10 -9 -8 -7 -6 -5 -5 -5 -4 -4 ------- Run | Yrd Mat Min Exi Min Mat Fac Fac Fac Was Fac Fac Upp Slots Evolved 12 | . . . . . 4 2 2 2 . . 2 . Power 1 | . . . . . . 1 . . . . . . Propulsion 4 | . . . . . 1 . 1 . . . 2 . Utility 5 | . . . . . 1 1 1 2 . . . . Weapon 2 | . . . . . 2 . . . . . . . Parts Attached 61 | 7 4 2 1 1 4 3 4 17 . 13 1 4 Power 13 | 1 1 . . . 1 1 . 4 . 3 . 2 Engine 6 | 1 1 . . . . 1 . 2 . 1 . . Core 7 | . . . . . 1 . . 2 . 2 . 2 Reactor . | . . . . . . . . . . . . . Propulsion 14 | 2 . 1 . . 1 . 2 2 . 4 1 1 Treads 6 | 2 . 1 . . 1 . 2 . . . . . Leg . | . . . . . . . . . . . . . Wheel . | . . . . . . . . . . . . . Hover . | . . . . . . . . . . . . . Flight 8 | . . . . . . . . 2 . 4 1 1 Utility 17 | 1 1 1 1 . 1 2 2 5 . 3 . . Device 8 | . 1 . . . 1 . . 3 . 3 . . Storage 2 | 1 . . 1 . . . . . . . . . Processor 4 | . . 1 . . . 1 1 1 . . . . Hackware 1 | . . . . . . 1 . . . . . . Protection 2 | . . . . . . . 1 1 . . . . Artifact . | . . . . . . . . . . . . . Weapon 17 | 3 2 . . 1 1 . . 6 . 3 . 1 Energy Gun 3 | 2 . . . . . . . 1 . . . . Energy Cannon 1 | . . . . . . . . . . . . 1 Ballistic Gun 4 | 1 . . . . 1 . . 1 . 1 . . Ballistic Cannon 2 | . . . . 1 . . . 1 . . . . Launcher 4 | . 1 . . . . . . 2 . 1 . . Special Weapon . | . . . . . . . . . . . . . Impact Weapon 2 | . 1 . . . . . . 1 . . . . Slashing Weapon 1 | . . . . . . . . . . 1 . . Piercing Weapon . | . . . . . . . . . . . . . Special Melee Weapon . | . . . . . . . . . . . . . Unidentified Prototypes 2 | . . . . . . . . 1 . 1 . . Parts Lost 36 | . 2 . . . . . 1 10 . 9 1 13 Power 11 | . 1 . . . . . . 5 . 2 . 3 Propulsion 12 | . 1 . . . . . 1 2 . 3 . 5 Utility 6 | . . . . . . . . 2 . 1 . 3 Weapon 7 | . . . . . . . . 1 . 3 1 2 Highest Loss Streak 13 | . 1 . . . . . 1 6 . 5 1 13 To Critical Strikes 1 | . . . . . . . . 1 . . . . Average Backups 12 | 1 5 6 6 8 17 19 19 11 2 2 2 2 Power 1 | . . . . . 2 1 2 1 . . 1 1 Propulsion 2 | . . . . . 2 5 3 2 2 1 . . Utility 4 | . 1 3 3 4 4 6 6 2 . . . . Weapon 5 | . 2 3 3 4 8 6 7 4 . . . . Tool/Special . | . . . . . . . . . . . . . Unused Backups 15 | . 1 . . 1 1 3 1 8 . . . . Power 1 | . . . . . 1 . . . . . . . Propulsion 3 | . . . . . . . . 3 . . . . Utility 8 | . 1 . . 1 . 1 1 4 . . . . Weapon 3 | . . . . . . 2 . 1 . . . . Tool/Special . | . . . . . . . . . . . . . Average Slot Usage (%) 79 | . 93 100 100 100 65 75 79 68 47 45 54 38 Engine 8 | . 13 14 14 14 2 7 6 3 . 1 . . Core 4 | . . . . . 6 7 6 4 5 6 5 5 Treads 21 | . 27 28 28 28 20 23 25 13 . . . . Flight 1 | . . . . . . . . 4 11 11 21 18 Device 2 | . 8 1 . . 8 1 . 5 . . 10 5 Storage 8 | . 14 14 14 14 9 7 6 3 . . . . Processor 11 | . . 12 14 14 9 14 13 12 17 15 9 4 Hackware 2 | . . . . . . 5 6 3 . . . . Protection 1 | . . . . . . . 5 3 . . . . Ballistic Gun 6 | . 5 . 13 8 8 7 6 3 . . . . Launcher 2 | . 8 14 . 2 . . . 1 5 3 3 . Impact Weapon 4 | . 9 14 14 14 . . . 1 5 2 . . Peak Build Rating 75 | 6 7 7 11 16 53 57 65 75 48 57 48 48 Average Rating 38 | 4 6 6 8 12 50 56 63 59 48 46 43 34 On Entrance 30 | . 6 6 7 11 16 53 57 65 48 48 41 36 Avg Prop Armor Cover (%) 12 | . . . . . . . . . . 12 . . Naked Turns 18 | . . . . . . . . . . . . 18 Heaviest Build 93 | 10 14 14 46 51 61 66 85 93 18 24 18 17 Greatest Support 83 | 40 40 40 40 40 60 60 83 83 26 26 28 35 Greatest Overweight (x) 4 | . . . 1 1 1 1 1 1 . . . 4 Average Overweight (x) . | . . . . 1 1 1 1 . . . . . Largest Inventory Capacity 20 | 8 8 8 20 20 20 20 20 20 5 5 5 5 Average Capacity 15 | 6 8 8 15 20 20 20 20 14 5 5 5 5 Most Carried 20 | 2 8 7 11 17 20 20 20 20 4 5 4 3 Average Carried 13 | 1 5 6 7 11 17 19 19 12 4 3 2 2 Final Capacity 20 | 8 8 8 20 20 20 20 20 5 5 5 5 5 Final Carried 20 | 2 7 6 11 16 20 20 20 4 4 2 4 1 Class Distribution -------------------- 45% | Mutant 37% | Scavenger-Skirmisher 9% | Skirmisher 4% | Scavenger-Gunner Dominant Class ---------------- Mutant | -10/Materials Mutant | -10/Mines Mutant | -10/Exiles Mutant | -9/Mines Skirmisher | -8/Materials Scavenger-Skirmisher | -7/Factory Scavenger-Skirmisher | -6/Factory Scavenger-Gunner | -5/Factory Mutant | -5/Waste Mutant | -5/Factory Ninja | -4/Factory Sprinter | -4/Upper Caves Resources | -11 -10 -10 -10 -9 -8 -7 -6 -5 -5 -5 -4 -4 ----------- Run | Yrd Mat Min Exi Min Mat Fac Fac Fac Was Fac Fac Upp Matter Collected 2626 | 272 180 53 . 86 538 405 391 550 . 66 . 85 Remotely . | . . . . . . . . . . . . . Salvage Created 3517 | 58 407 53 . 86 901 428 595 520 . 469 . . Parts 183 | 4 31 . . 1 57 25 29 19 . 17 . . Haulers Intercepted 1 | . . . . . . . . . . 1 . . Recyclers Shooed 6 | . 3 . . . . . . 2 . 1 . . Parts Field Recycled . | . . . . . . . . . . . . . Retrieved Matter . | . . . . . . . . . . . . . Parts Self-Destructed 2 | . . . . . . . . . . . . 2 Prevented . | . . . . . . . . . . . . . Parts Restored . | . . . . . . . . . . . . . Kills | -11 -10 -10 -10 -9 -8 -7 -6 -5 -5 -5 -4 -4 ------- Run | Yrd Mat Min Exi Min Mat Fac Fac Fac Was Fac Fac Upp Combat Hostiles Destroyed 46 | . 11 . . . 9 3 10 7 . 6 . . Melee 1 | . 1 . . . . . . . . . . . Guns 31 | . 1 . . . 9 3 10 5 . 3 . . Cannons 2 | . . . . . . . . 2 . . . . AOE 11 | . 9 . . . . . . . . 2 . . Classes Destroyed 13 | 1 6 1 . . 3 1 . . . 1 . . Worker 8 | . 3 1 . . 2 1 . . . 1 . . Builder 8 | . 5 . . . 2 1 . . . . . . Tunneler 4 | . . 2 . . 1 . . 1 . . . . Hauler 1 | . . . . . . . . . . 1 . . Recycler 12 | 1 2 . . 1 4 2 . 1 . 1 . . Mechanic 1 | . . . . . 1 . . . . . . . Operator 2 | . 1 . . . 1 . . . . . . . Watcher 7 | . 1 . . . 2 2 1 1 . . . . Swarmer 8 | . 3 . . . 2 . . . . 3 . . Grunt 23 | . 8 . . . 3 . 6 5 . 1 . . Sentry 2 | . . . . . 2 . . . . . . . Hunter 6 | . . . . . 2 . 2 2 . . . . Programmer 7 | . . . . . . 3 2 . . 2 . . Best Kill Streak 8 | 1 8 2 . 1 4 2 3 4 . 4 . . Combat Bots Only 5 | . 5 . . . 3 1 3 3 . 3 . . Max Kills in Single Turn 2 | 1 2 1 . 1 2 1 1 1 . 1 . . Gunslinging . | . . . . . . . . . . . . . Exploded 2 | . 2 . . . . . . . . 1 . . Melee 1 | . 1 . . . . . . . . . . . Uniques/NPCs Destroyed . | . . . . . . . . . . . . . Combat | -11 -10 -10 -10 -9 -8 -7 -6 -5 -5 -5 -4 -4 -------- Run | Yrd Mat Min Exi Min Mat Fac Fac Fac Was Fac Fac Upp Hostile Shots Fired 494 | . 73 . . . 21 14 29 95 . 82 6 174 Missed 172 | . 23 . . . 9 4 5 21 . 36 5 69 Hits 322 | . 50 . . . 12 10 24 74 . 46 1 105 Projectile 322 | . 50 . . . 12 10 24 74 . 46 1 105 AOE 3 | . . . . . . . . 3 . . . . Critical Strikes 15 | . . . . . 1 2 1 4 . 1 . 6 Part Disruptions 3 | . . . . . . . . 1 . 2 . . Damage Taken 6241 | . 607 . . 57 187 151 428 1656 . 1251 29 1875 Core 1770 | . 149 . . . 51 14 . 87 . 313 . 1156 Absorbed by Shields . | . . . . . . . . . . . . . Ignored by Resistances 34 | . . . . . . . 34 . . . . . Core Remaining (%) 81 | 100 . . . 40 90 98 100 . . 60 . . Volleys Fired 164 | 2 30 . . . 35 17 22 27 . 29 . 2 Largest 4 | 2 2 . . . 1 1 1 4 . 2 . 1 Hottest 183 | 60 60 . . . 60 60 60 183 . 78 . 88 Shots Fired 206 | 4 33 . . . 35 19 22 62 . 29 . 2 Gun 146 | 4 8 . . . 35 19 22 37 . 21 . . Cannon 26 | . . . . . . . . 24 . . . 2 Launcher 34 | . 25 . . . . . . 1 . 8 . . Special . | . . . . . . . . . . . . . Kinetic 152 | 2 5 . . . 35 19 22 48 . 21 . . Thermal 18 | 2 3 . . . . . . 13 . . . . Explosive 29 | . 25 . . . . . . . . 4 . . Electromagnetic 7 | . . . . . . . . 1 . 4 . 2 Robot Hit Streak 12 | 1 5 . . . 12 9 11 9 . 10 . 5 Robot Miss Streak 8 | 1 2 . . . 8 8 3 5 . 4 . . Penetration Max 1 | . . . . . . . . . . 1 . . Secondary Targets . | . . . . . . . . . . . . . Shots Hit Robots 165 | 2 30 4 . 1 32 17 22 38 . 17 . 2 Core Hits 142 | 2 34 . . . 28 12 21 23 . 20 . 2 Critical Kills 3 | . . . . . . . . . . 3 . . Critical Parts Destroyed 2 | . . 1 . . . . . . . 1 . . Critical Strikes 6 | . . 1 . . . . . 1 . 4 . . Destroy 4 | . . . . . . . . . . 4 . . Blast 1 | . . . . . . . . 1 . . . . Smash 1 | . . 1 . . . . . . . . . . Melee Attacks 93 | . 17 4 . 17 . . . 14 . 37 . 4 Impact 87 | . 17 4 . 17 . . . 14 . 35 . . Slashing 6 | . . . . . . . . . . 2 . 4 Piercing . | . . . . . . . . . . . . . Sneak Attacks 7 | . 2 4 . 1 . . . . . . . . Combat Hostiles . | . . . . . . . . . . . . . Follow-up Attacks . | . . . . . . . . . . . . . Damage Inflicted 7491 | 33 1628 185 . 36 1462 841 1116 1388 . 721 . 81 Guns 4571 | 33 49 . . . 1462 841 1116 981 . 89 . . Cannons 479 | . . . . . . . . 401 . . . 78 Explosions 1913 | . 1300 . . . . . . 6 . 607 . . Melee 500 | . 279 185 . 36 . . . . . . . . Ramming 28 | . . . . . . . . . . 25 . 3 Kinetic 4713 | 9 26 . . . 1462 841 1116 1170 . 89 . . Thermal 259 | 24 23 . . . . . . 212 . . . . Explosive 1557 | . 1300 . . . . . . . . 257 . . Electromagnetic 434 | . . . . . . . . 6 . 350 . 78 Impact 500 | . 279 185 . 36 . . . . . . . . Slashing . | . . . . . . . . . . . . . Piercing . | . . . . . . . . . . . . . Highest Corruption 22 | . . . . . . 2 . 9 9 22 . . Average Corruption 5 | . . . . . . 2 . 9 9 13 . . Corruption Purged . | . . . . . . . . . . . . . Corruption Blocked . | . . . . . . . . . . . . . Effects 46 | . . . . . . 14 . 8 1 23 . . Message Errors 13 | . . . . . . 2 . 5 1 5 . . Matter Fused 14 | . . . . . . 7 . 1 . 6 . . Heat Flow Errors 4 | . . . . . . 1 . 1 . 2 . . Energy Discharges 1 | . . . . . . 1 . . . . . . Data Loss (minor) 4 | . . . . . . . . . . 4 . . Data Loss (major) 2 | . . . . . . 1 . . . 1 . . Misfires 2 | . . . . . . 2 . . . . . . Alerts 3 | . . . . . . . . 1 . 2 . . Misdirections 2 | . . . . . . . . . . 2 . . Weapon Failures 1 | . . . . . . . . . . 1 . . Overload Shots . | . . . . . . . . . . . . . Overflow Damage 182 | . 43 98 . 11 . . . . . 30 . . Projectiles . | . . . . . . . . . . . . . Explosions 42 | . 12 . . . . . . . . 30 . . Melee 140 | . 31 98 . 11 . . . . . . . . Knockbacks 7 | . 1 3 . . . . . 3 . . . . Impact 4 | . 1 3 . . . . . . . . . . Kinetic 3 | . . . . . . . . 3 . . . . Secondary . | . . . . . . . . . . . . . Self-Inflicted Damage 363 | . 123 . . . . . . . . 239 . 1 Shots 13 | . 7 . . . . . . . . 6 . . Rammed 1 | . . . . . . . . . . . . 1 Targets Rammed 1 | . . . . . . . . . . . . 1 Kicked . | . . . . . . . . . . . . . Crushed . | . . . . . . . . . . . . . Highest Temperature 691 | 20 20 . . . 180 175 264 691 . 135 . 116 Average Temperature 115 | 15 6 . . . 64 64 78 232 . 51 . 53 Received Heat Transfer 747 | . 186 . . . 36 . 153 162 . 9 . 201 Effects 17 | . . . . . . . . 17 . . . . Shutdowns 2 | . . . . . . . . 2 . . . . Energy Bleed 2 | . . . . . . . . 2 . . . . Interference 4 | . . . . . . . . 4 . . . . Matter Decay 3 | . . . . . . . . 3 . . . . Short Circuit 1 | . . . . . . . . 1 . . . . Damage (minor) 1 | . . . . . . . . 1 . . . . Damage (major) 4 | . . . . . . . . 4 . . . . Siege Activations . | . . . . . . . . . . . . . Martial Activations . | . . . . . . . . . . . . . Shielding Activations . | . . . . . . . . . . . . . Robots Disrupted . | . . . . . . . . . . . . . Combat Hostiles . | . . . . . . . . . . . . . Robots Corrupted 7 | . 2 3 . 1 . . . . . 1 . . Combat Hostiles 1 | . . . . . . . . . . 1 . . Parts Fried 14 | . 3 8 . 2 . . . . . 1 . . Impact Corruptions 9 | . 3 5 . 1 . . . . . . . . Robots Melted . | . . . . . . . . . . . . . Combat Hostiles . | . . . . . . . . . . . . . Parts Melted . | . . . . . . . . . . . . . Heat Transferred 470 | 50 50 . . . . . . 370 . . . . Parts Sabotaged . | . . . . . . . . . . . . . Parts Stolen . | . . . . . . . . . . . . . Parts Stripped . | . . . . . . . . . . . . . Power Chain Reactions . | . . . . . . . . . . . . . Alert | -11 -10 -10 -10 -9 -8 -7 -6 -5 -5 -5 -4 -4 ------- Run | Yrd Mat Min Exi Min Mat Fac Fac Fac Was Fac Fac Upp Maximum Alert Level 1 | . . . . . . . . . . 1 . . Low Security (%) 98 | 100 100 100 . 100 100 100 100 100 100 83 100 . Level 1 1 | . . . . . . . . . . 16 . . Level 2 . | . . . . . . . . . . . . . Level 3 . | . . . . . . . . . . . . . Level 4 . | . . . . . . . . . . . . . Level 5 . | . . . . . . . . . . . . . High Security . | . . . . . . . . . . . . . Max Security . | . . . . . . . . . . . . . Peak Influence 324 | 5 185 65 . 15 134 45 79 100 . 324 148 . Initial 148 | . . 65 . . . 11 . 35 . . 148 . Average 31 | . 73 10 . 1 47 4 15 37 . 119 135 . Influence Increases 2257 | 5 428 15 . 26 373 178 268 306 . 568 . 90 Destroy 0b10 Robot/C 920 | . 220 . . . 180 60 200 140 . 120 . . Destroy 0b10 Robot/NC 215 | 5 60 15 . 5 65 30 5 15 . 15 . . Destroy Leader 226 | . 32 . . . 54 34 52 32 . 22 . . Successful Hack 38 | . 18 . . . 7 5 4 4 . . . . Disable Machine 210 | . 15 . . 15 30 45 . 30 . 75 . . Destroy Structure 303 | . 83 . . 6 37 4 7 70 . 96 . . Partial Spotted 60 | . . . . . . . . 15 . 45 . . Lose Combat Pursuer 285 | . . . . . . . . . . 195 . 90 Influence Decreases 2252 | 5 259 184 . 26 346 205 195 377 2 264 186 203 Entered New Map 361 | . . 104 . . . 16 . 38 2 . 156 45 Time Decay 1529 | 5 239 80 . 26 299 189 195 249 . 174 20 53 Lost Part 315 | . 20 . . . . . . 90 . 90 10 105 Purge Threat 47 | . . . . . 47 . . . . . . . Squads Dispatched 17 | . 3 . . . 1 3 3 4 . 3 . . Investigation 3 | . . . . . . . 1 1 . 1 . . Extermination 7 | . . . . . . 3 2 1 . 1 . . Reinforcement 7 | . 3 . . . 1 . . 2 . 1 . . Assault . | . . . . . . . . . . . . . Garrison . | . . . . . . . . . . . . . Intercept . | . . . . . . . . . . . . . Searches Triggered . | . . . . . . . . . . . . . Construction Impeded 1 | . . . . . . . . 1 . . . . Haulers Reinforced 1 | . . . . . . . . . . 1 . . Active Scanning Responses . | . . . . . . . . . . . . . Cargo Convoy Interrupts . | . . . . . . . . . . . . . Stealth | -11 -10 -10 -10 -9 -8 -7 -6 -5 -5 -5 -4 -4 --------- Run | Yrd Mat Min Exi Min Mat Fac Fac Fac Was Fac Fac Upp Distress Signals 3 | . 2 . . . 1 . . . . . . . Communications Jammed 6 | . . . . . 6 . . . . . . . Distress Signals 6 | . . . . . 6 . . . . . . . Times Spotted 132 | . 28 . . . 16 6 11 12 6 21 3 29 Peak Tracking Total 21 | . 7 . . . 2 1 3 3 6 10 3 21 Tactical Retreats 9 | . . . . . . . . . . 6 . 3 ECM-based Alert Blocks 3 | . . . . . . . . . . . . 3 Traps | -11 -10 -10 -10 -9 -8 -7 -6 -5 -5 -5 -4 -4 ------- Run | Yrd Mat Min Exi Min Mat Fac Fac Fac Was Fac Fac Upp Traps Triggered 5 | . . . . 1 . . 2 1 . 1 . . Indirectly . | . . . . . . . . . . . . . Trap Hack Attempts . | . . . . . . . . . . . . . Triggered . | . . . . . . . . . . . . . Disarmed 6 | . . . . . 6 . . . . . . . Reprogrammed . | . . . . . . . . . . . . . Reused . | . . . . . . . . . . . . . Traps Extracted . | . . . . . . . . . . . . . Installed . | . . . . . . . . . . . . . Triggered . | . . . . . . . . . . . . . Machines | -11 -10 -10 -10 -9 -8 -7 -6 -5 -5 -5 -4 -4 ---------- Run | Yrd Mat Min Exi Min Mat Fac Fac Fac Was Fac Fac Upp Machines Disabled 17 | . 4 . . 1 2 3 . 2 . 5 . . Max in Single Turn 3 | . 3 . . 1 1 1 . 1 . 2 . . Garrison Access 1 | . . . . . . 1 . . . . . . Machines Repaired . | . . . . . . . . . . . . . Machines Dismantled . | . . . . . . . . . . . . . Machines Sabotaged . | . . . . . . . . . . . . . Overloaded Fab Kills . | . . . . . . . . . . . . . Hacking | -11 -10 -10 -10 -9 -8 -7 -6 -5 -5 -5 -4 -4 --------- Run | Yrd Mat Min Exi Min Mat Fac Fac Fac Was Fac Fac Upp Machines Accessed 25 | . 5 . 5 . 5 3 5 1 . . . 1 Terminals 12 | . 3 . . . 4 1 2 1 . . . 1 Fabricators 2 | . . . . . . . 2 . . . . . Repair Stations . | . . . . . . . . . . . . . Recycling Units 5 | . 2 . . . 1 1 1 . . . . . Scanalyzers . | . . . . . . . . . . . . . Garrison Access 1 | . . . . . . 1 . . . . . . Total Hacks 99 | . 11 . 50 . 14 5 10 4 . . . 5 Successful 78 | . 6 . 50 . 8 3 5 1 . . . 5 Failed 21 | . 5 . . . 6 2 5 3 . . . . Catastrophic 4 | . 2 . . . . . 2 . . . . . Database Lockouts . | . . . . . . . . . . . . . Manual 4 | . 3 . 1 . . . . . . . . . Terminals 36 | . 9 . . . 13 1 4 4 . . . 5 Fabricators 4 | . . . . . . . 4 . . . . . Repair Stations . | . . . . . . . . . . . . . Recycling Units 6 | . 2 . . . 1 1 2 . . . . . Scanalyzers . | . . . . . . . . . . . . . Garrison Access 3 | . . . . . . 3 . . . . . . Terminal Hacks 69 | . 4 . 50 . 7 1 1 1 . . . 5 Record 54 | . . . 49 . . . . . . . . 5 Prototype ID Bank 2 | . . . . . 1 . . 1 . . . . Open DSF 1 | . . . . . . . 1 . . . . . Branch Access Points 1 | . 1 . . . . . . . . . . . Alert Level 1 | . . . . . 1 . . . . . . . Unreport Threat 2 | . . . . . 2 . . . . . . . Locate Traps 3 | . 2 . . . 1 . . . . . . . Disarm Traps 1 | . . . . . 1 . . . . . . . Transport Status 1 | . 1 . . . . . . . . . . . Zone Layout 2 | . . . . . 1 1 . . . . . . Proto ID Catalog 1 | . . . 1 . . . . . . . . . Fabricator Hacks 2 | . . . . . . . 2 . . . . . Network Status 1 | . . . . . . . 1 . . . . . Build 1 | . . . . . . . 1 . . . . . Repair Station Hacks . | . . . . . . . . . . . . . Recycling Unit Hacks 6 | . 2 . . . 1 1 2 . . . . . Report Inventory 5 | . 2 . . . 1 1 1 . . . . . Retrieve Components 1 | . . . . . . . 1 . . . . . Scanalyzer . | . . . . . . . . . . . . . Garrison Access Hacks 1 | . . . . . . 1 . . . . . . Seal Access 1 | . . . . . . 1 . . . . . . Unauthorized Hacks . | . . . . . . . . . . . . . Terminals . | . . . . . . . . . . . . . Fabricators . | . . . . . . . . . . . . . Repair Stations . | . . . . . . . . . . . . . Recycling Units . | . . . . . . . . . . . . . Scanalyzers . | . . . . . . . . . . . . . Garrison Access . | . . . . . . . . . . . . . Data Cores Recovered . | . . . . . . . . . . . . . Used . | . . . . . . . . . . . . . Hacking Detections 15 | . 5 . . . 3 1 4 1 . . . 1 Full Trace Events 6 | . 1 . . . 2 . 1 1 . . . 1 Feedback Events . | . . . . . . . . . . . . . Feedback Blocked . | . . . . . . . . . . . . . Robot Schematics Acquired . | . . . . . . . . . . . . . Robots Built . | . . . . . . . . . . . . . Authchips . | . . . . . . . . . . . . . Time . | . . . . . . . . . . . . . Total Robot Build Rating . | . . . . . . . . . . . . . Part Schematics Acquired . | . . . . . . . . . . . . . Parts Built 1 | . . . . . . . 1 . . . . . Authchips . | . . . . . . . . . . . . . Time 76 | . . . . . . . 76 . . . . . Total Part Build Rating 5 | . . . . . . . 5 . . . . . Part Studies Acquired . | . . . . . . . . . . . . . Parts Repaired . | . . . . . . . . . . . . . Time . | . . . . . . . . . . . . . Parts Recycled . | . . . . . . . . . . . . . Recycled Matter . | . . . . . . . . . . . . . Retrieved Matter . | . . . . . . . . . . . . . Retrieved Components 1 | . . . . . . . 1 . . . . . Parts Scanalyzed . | . . . . . . . . . . . . . Part Schematics Acquired . | . . . . . . . . . . . . . Parts Damaged . | . . . . . . . . . . . . . Bothacking | -11 -10 -10 -10 -9 -8 -7 -6 -5 -5 -5 -4 -4 ------------ Run | Yrd Mat Min Exi Min Mat Fac Fac Fac Was Fac Fac Upp Used RIF Installer . | . . . . . . . . . . . . . Robots Hacked . | . . . . . . . . . . . . . Non-combat . | . . . . . . . . . . . . . Combat . | . . . . . . . . . . . . . Robot Hacks Applied . | . . . . . . . . . . . . . Relay Couplers Released . | . . . . . . . . . . . . . Fabnet Peak Effective % . | . . . . . . . . . . . . . Robots Rewired . | . . . . . . . . . . . . . Allies Hacked . | . . . . . . . . . . . . . Hacks Repelled . | . . . . . . . . . . . . . Allies | -11 -10 -10 -10 -9 -8 -7 -6 -5 -5 -5 -4 -4 -------- Run | Yrd Mat Min Exi Min Mat Fac Fac Fac Was Fac Fac Upp Total Allies 1 | . . . . . . . . . . . . 1 Largest Group . | . . . . . . . . . . . . . Highest-Rated Group . | . . . . . . . . . . . . . Highest-Rated Ally . | . . . . . . . . . . . . . Total Orders . | . . . . . . . . . . . . . Ally Attacks . | . . . . . . . . . . . . . Total Damage . | . . . . . . . . . . . . . Kills . | . . . . . . . . . . . . . Allies Corrupted . | . . . . . . . . . . . . . Allies Melted . | . . . . . . . . . . . . . Intel | -11 -10 -10 -10 -9 -8 -7 -6 -5 -5 -5 -4 -4 ------- Run | Yrd Mat Min Exi Min Mat Fac Fac Fac Was Fac Fac Upp Active Infowar (turns) 1955 | . 484 51 . . 798 457 . . . 34 54 77 Sensors 535 | . 484 51 . . . . . . . . . . Terrain 148 | . . . . . . . . . . 17 54 77 Jamming 1255 | . . . . . 798 457 . . . . . . ECM 134 | . . . . . . . . . . 34 54 46 Robot Analysis Total . | . . . . . . . . . . . . . Derelict Logs Recovered 1 | . . 1 . . . . . . . . . . Drone Launches . | . . . . . . . . . . . . . Drone Recoveries . | . . . . . . . . . . . . . Exploration | -11 -10 -10 -10 -9 -8 -7 -6 -5 -5 -5 -4 -4 ------------- Run | Yrd Mat Min Exi Min Mat Fac Fac Fac Was Fac Fac Upp Turns Passed 8362 | 86 813 467 1273 376 801 2043 1067 749 28 480 54 125 Spaces Moved 5105 | 47 429 258 632 134 307 729 398 818 75 801 155 322 Core 43 | 6 . . . . . . . . . . . 37 Treads 3097 | 41 429 258 632 134 307 729 398 169 . . . . Legs . | . . . . . . . . . . . . . Wheels . | . . . . . . . . . . . . . Hover . | . . . . . . . . . . . . . Flight 1965 | . . . . . . . . 649 75 801 155 285 Fastest Speed 28 | 50 160 160 160 240 240 240 240 37 37 30 29 28 Average Speed 142 | 145 160 160 201 240 240 240 240 73 37 36 29 32 Slowest Speed 250 | 160 160 160 240 240 240 240 240 240 37 40 29 250 Overloaded Moves . | . . . . . . . . . . . . . Propulsion Burnouts . | . . . . . . . . . . . . . Robots Hopped . | . . . . . . . . . . . . . Potential Cave-ins 9 | . . . . . . . . 2 . 7 . . Cave-ins Triggered 2 | . . . . . . . . 1 . 1 . . Exploration Rate (%) 32 | 3 58 39 93 20 32 14 12 17 76 21 4 38 Regions Visited 12 Branch Regions 4 Pre-discovered Areas 1 | . . . 1 . . . . . . . . . Known Exits Taken 7 | . 1 1 1 1 1 1 1 . . . . . Unknown Exits Taken 3 | 1 . . . . . . . . . 1 1 . Scrap Searched 2 | . . . . . . . . . . . . 2 Spaces Dug 41 | . . . . 6 . . . 7 . 24 . 4 Terrain Destroyed 236 | . 83 . . 6 36 4 4 34 . 65 . 4 Melee 39 | . . . . 6 . . . 5 . 24 . 4 Projectile 72 | . . . . . 36 4 4 28 . . . . AOE 123 | . 83 . . . . . . . . 40 . . Terrain Rammed 1 | . . . . . . . . . . 1 . . Walls Destroyed 1 | . . . . . . . . . . 1 . . Machines Disabled . | . . . . . . . . . . . . . Actions | -11 -10 -10 -10 -9 -8 -7 -6 -5 -5 -5 -4 -4 --------- Run | Yrd Mat Min Exi Min Mat Fac Fac Fac Was Fac Fac Upp Total 5957 | 58 495 306 635 161 378 1027 511 924 74 891 163 334 Wait 423 | . 4 42 . 1 8 265 82 12 . 5 4 . Move 5093 | 46 428 257 631 133 306 728 397 817 74 800 154 322 Hop . | . . . . . . . . . . . . . Pick Up 54 | 2 8 . 1 5 13 8 4 6 . 3 3 1 Fast Attach 25 | 6 1 . . 1 3 . 1 4 . 9 . . Attach 39 | 1 3 2 1 1 2 3 3 14 . 4 1 4 Detach 22 | 1 2 1 1 2 3 . 1 8 . 2 1 . Swap 1 | . . . 1 . . . . . . . . . Drop 40 | . 2 . . 1 8 6 1 21 . 1 . . Fire 164 | 2 30 . . . 35 17 22 27 . 29 . 2 Melee 93 | . 17 4 . 17 . . . 14 . 37 . 4 Ram 2 | . . . . . . . . . . 1 . 1 Kick . | . . . . . . . . . . . . . Crush . | . . . . . . . . . . . . . Escape Stasis 1 | . . . . . . . . 1 . . . . Rewire . | . . . . . . . . . . . . . Trap . | . . . . . . . . . . . . . Miscellaneous . | . . . . . . . . . . . . . Route ------- -11/Scrapyard -10/Materials (discovered 2 exits: *Min x2) -10/Mines (discovered 2 exits: *Mat / *Exi) -10/Exiles -9/Mines -8/Materials (discovered 2 exits: *Fac x2) -7/Factory -6/Factory -5/Factory -5/Waste -5/Factory -4/Factory -4/Upper Caves History --------- Turn | Location | Event 8 | -11/Scrapyard | Discovered new exit (range 15) 87 | -11/Scrapyard | Entered Materials 221 | -10/Materials | Identified exit to Mines 316 | -10/Materials | Build established: Mutant 816 | -10/Materials | Core integrity fell below 50% 900 | -10/Materials | Entered Mines 943 | -10/Mines | Discovered new exit (range 3) 1011 | -10/Mines | Identified exit to Materials 1038 | -10/Mines | Deemed a non-threat by the Exiles lab entrance 1039 | -10/Mines | Discovered new exit (range 5) 1046 | -10/Mines | Identified exit to Exiles 1228 | -10/Mines | Learned location of 1 exit from Materials 1367 | -10/Mines | Entered Exiles 1411 | -10/Exiles | Met 8R-AWN 1451 | -10/Exiles | Met EX-HEX 1572 | -10/Exiles | Visited The Gauntlet 1750 | -10/Exiles | Met EX-DEC 1795 | -10/Exiles | Learned location of Zion (-7) 1926 | -10/Exiles | Discovered new exit (range 10) 1946 | -10/Exiles | Identified exit to Mines 2121 | -10/Exiles | Met EX-BIN 2159 | -10/Exiles | Aligned with FarCom system 2162 | -10/Exiles | Given EX-Vault access code 2267 | -10/Exiles | Opened EX-Vault 2298 | -10/Exiles | Found XL Autogun Array 2448 | -10/Exiles | Warned to stay clear of 0b10 Research branches 2640 | -10/Exiles | Left Exiles lab with XL Autogun Array 2640 | -10/Exiles | Entered Mines 2931 | -9/Mines | Met a Derelict who couldn't figure out how to use a Trap Extractor 3002 | -9/Mines | Discovered new exit (range 8) 3014 | -9/Mines | Identified exit to Materials 3016 | -9/Mines | Entered Materials 3016 | -8/Materials | Evolved 4 slots: Propulsion x1, Utility x1, Weapon x2 3017 | -8/Materials | Identified exit to Factory 3307 | -8/Materials | Build established: Skirmisher 3463 | -8/Materials | Discovered exit to Factory (range 15) 3817 | -8/Materials | Entered Factory 3817 | -7/Factory | Evolved 2 slots: Power x1, Utility x1 3990 | -7/Factory | Discovered new exit (range 15) 4025 | -7/Factory | Identified exit to Factory 4124 | -7/Factory | Build established: Scavenger-Skirmisher 5860 | -7/Factory | Entered another Factory area 5860 | -6/Factory | Evolved 2 slots: Propulsion x1, Utility x1 5958 | -6/Factory | Identified exit to DSF 6591 | -6/Factory | Fabricated Scatter Rocket Array (x1) 6757 | -6/Factory | Discovered new exit (range 15) 6873 | -6/Factory | Identified exit to Factory 6927 | -6/Factory | Entered another Factory area 6927 | -5/Factory | Evolved 2 slots: Utility x2 7385 | -5/Factory | Lost 6 parts (3p2n1u) 7482 | -5/Factory | Crushed by falling debris 7513 | -5/Factory | Lost 3 parts (2p1u) 7676 | -5/Factory | Sucked down chute 7676 | -5/Factory | Entered Waste 7681 | -5/Waste | Build established: Mutant 7683 | -5/Waste | Spotted C-40 Crusher 7684 | -5/Waste | Spotted C-40 Crusher 7689 | -5/Waste | Spotted C-40 Crusher 7689 | -5/Waste | Spotted C-40 Crusher 7693 | -5/Waste | Spotted C-40 Crusher 7699 | -5/Waste | Spotted C-40 Crusher 7700 | -5/Waste | Discovered new exit (range 10) 7704 | -5/Waste | Identified exit to Factory 7704 | -5/Waste | Entered Factory 7989 | -5/Factory | Crushed by falling debris 7989 | -5/Factory | System corruption reached 10% 8063 | -5/Factory | Lost 5 parts (1p1n1u2w) 8158 | -5/Factory | Lost 4 parts (1p2n1w) 8178 | -5/Factory | Discovered new exit (range 12) 8184 | -5/Factory | Entered another Factory area 8184 | -4/Factory | Evolved 2 slots: Propulsion x2 8209 | -4/Factory | Spotted B-86 Titan 8228 | -4/Factory | Discovered new exit (range 15) 8238 | -4/Factory | Entered Upper Caves 8297 | -4/Upper Caves | Attracted the attention of an 0b10 checkpoint 8307 | -4/Upper Caves | Found DCF Scrap (11 items) 8324 | -4/Upper Caves | Attracted the attention of an 0b10 base 8354 | -4/Upper Caves | Core integrity fell below 50% 8361 | -4/Upper Caves | Core integrity fell below 20% 8363 | -4/Upper Caves | Destroyed by H-77 Assassin with High-powered Shotgun Last Messages --------------- >>Query(Status Report 112X) INTERCEPTED DERELICT INTEL. Data stored: Research entrances (x1). 08338_ Nuclear Pulse Array destroyed. 08338_ Penetrated by Slug. 08338_ Imp. Fusion Compressor destroyed. 08339_ Outpost Terminal disabled. 08341_ Penetrated by Slug. 08341_ Slug penetrates Wall. 08342_ HERF Cannon destroyed. 08344_ Neutrino Core destroyed. 08345_ S-27 Virus destroyed. 08345_ Imp. Targeting Computer destroyed. 08352_ Penetrated by Slug. 08354_ Slug penetrates Wall. 08357_ Penetrated by Slug. 08360_ S-27 Virus destroyed. A strange signal echoes through the caves. 08363_ Slammed into G-67 Veteran. 08363_ Penetrated by Slug. Map ----- +----------------------------------------------------+ | ????????????????????????????????????????""???????? | | ??????????????????????????????????????#"" ???????? | | ???????????????????????????????????????"" "??????? | | ???????????????????????????????????????#" "#####?? | | ???????????????????????????????????#####" "# ### | | ??????????????????????????????????## "" "" | | ????????####??????????????????????# | | ?########""############???????????# ### | | ?# ##??????????# | | ?# #?????????## ## | | ?# ####"#["######## ##???????## ?## # | | ?# #""" % """""?# ##?????## #?# # | | ?# #"" = # ##???## ## | | ?# #" # ##??# #### | | ?# #" ####### ###?# ##??# | | ?# #" " %= #### ##### | | ?# #" " s s ### ## | | ?# # " + ## s ######### ## | | ?# + "" # ### #???????# ####### | | ?# " " ##### #?# Y #???????# #?????? | | ?# # "" #???# #?# #### #####???# #?#???? | | ?# # " # #?#hh#??### ???## ##?#### | | ?# #""" # #?# g#????# #???# #?## ## | | ?# #??" # #?# g#????# #??## ### # | | ?# #??" # # #?# #???## #??# ### # | | ?# #??#####++###### #?#@g#?### #### # | | ?# ?????????????? #?#g ### ## | | ?# ?????????????? #?# | | ?####??????????????####?# | | ????????????????????????######## ### | | ???????????????????????????????## | | ????????????????????????????????# | | ????????????????????????????????## | | ?????????????????????????????????" | | ????????????????????????????????## # # | | ?????????????????????????????????# # ##### | | ?????????????????????????????????# # ##### | | ?????????????????????????????????## ## ## # | | ??????????????????????????????????# ?# # ## | | ??????????????????????????????????# ## #% ##? | | ??????????????????????????????????# ## #?# | | ??????????????????????????????????# ## ### | | ?????????????????????????????????? ?## ! =*## | | ????????????????????????????????? ??####![]!= | | ????????????????????????????????? ??????##|]% | | ????????????????????????????????## ???????##### | | ???????????????????????????????????? ????????#??## | | ????????????????????????????????????#????????????# | | ?????????????????????????????????????????????????# | | ?????????????????????????????????????????????????# | +----------------------------------------------------+ Best States ------------- Heat Dissipation 43 Energy Generation 44 Energy Capacity 315 Matter Stores 300 Matter Capacity 300 Sight Range 16 Robot Scan Range 14 Terrain Scan Range 16 Terrain Scan Density 10 ECM Strength 1 Jamming Range 12 Armor Coverage 225 Resistance: KI 30 Evasion (%) 64 Targeting Accuracy 6 Launcher Accuracy 30 Recoil Reduction 8 Matter Filtering 30 Kinecelleration 40 Offensive Hacking 10 Item Schematics ----------------- None Robot Schematics ------------------ None Fabricated ------------ Scatter Rocket Array | x1 | -6/Factory | Preloaded Repaired ---------- Nothing Studied --------- None Alien Tech Used ----------------- None Achievements -------------- Fancy Inventory Challenges ------------ None Game ------ Seed VisualZeronetChainsword Manual? 0 Play Time 01:06:53 Cumulative 23.3 hours Start 2026.02.15 @ 11:30:25 End 2026.02.15 @ 12:35:38 Sessions 1 Manual Loads 0 Difficulty Rogue Special Mode None Game No. 58 Rogue 58 Adventurer 0 Explorer 0 Win Type - Total 0 Types 0/0/0/0/0/0/0/0/0/0 Lore% 10 Gallery% 24 Achievement% 18 Wizard Run 0 Options --------- Layout 1 ASCII 0 Keyboard 1 Movement Vi Keybinds 0 Fullscreen 1 Font 24/Smallcaps Map View 50x35 Zoom Use 0% Tactical HUD 1 Map Filters NONE Filters NONE Steam 1 RUN: 4b0e7a7b-fb6c-4d0d-ab22-1aa77bf97a92